Workbook

Sheet typing_data
A1: brand | B1: speed
A2: REGAL | B2: 70
A3: SPEEDYTYPE | B3: 87
A4: SPEEDYTYPE | B4: 79
A5: REGAL | B5: 73
A6: SPEEDYTYPE | B6: 77
A7: REGAL | B7: 72
A8: WORD-O-MATIC | B8: 62
A9: REGAL | B9: 71
A10: WORD-O-MATIC | B10: 77
A11: SPEEDYTYPE | B11: 80 | K11: Bin | L11: Frequency
A12: REGAL | B12: 72 | K12: 61 | L12: 1
A13: WORD-O-MATIC | B13: 66 | K13: 67.5 | L13: 3
A14: SPEEDYTYPE | B14: 81 | K14: 74 | L14: 7
A15: REGAL | B15: 68 | K15: 80.5 | L15: 4
A16: WORD-O-MATIC | B16: 61 | K16: More | L16: 2
A17: REGAL | B17: 66
A18: REGAL | B18: 70
D24: Descriptive Statistics | G24: Box Plot | J24: Shapiro-Wilk Test | M24: Outliers and Missing Data
E26: =B2 -> 70 | H26: =B2 -> 70 | K26: =B2 -> 70 | N26: =B2 -> 70
D27: Mean | E27: =AVERAGE(B3:B18) -> 72.625 | G27: Min | H27: =MIN(B3:B18) -> 61 | J27: W | K27: =[1]!SHAPIRO(B3:B18) -> 0.9774974816 | M27: mean | N27: =AVERAGE(B3:B18) -> 72.625
D28: Standard Error | E28: =STDEV(B3:B18)/SQRT(COUNT(B3:B18)) -> 1.800173603 | G28: Q1-Min | H28: =QUARTILE(B3:B18,1)-H27 -> 6.5 | J28: p-value | K28: =[1]!SWTEST(B3:B18) -> 0.9406123278 | M28: stdev | N28: =STDEV(B3:B18) -> 7.200694411
D29: Median | E29: =MEDIAN(B3:B18) -> 72 | G29: Med-Q1 | H29: =MEDIAN(B3:B18)-QUARTILE(B3:B18,1) -> 4.5 | J29: alpha | K29: 0.05 | M29: # outliers | N29: =COUNTIF(N32:N47,">=2.5")+COUNTIF(N32:N47,"<=-2.5") -> 0
D30: Mode | E30: =MODE(B3:B18) -> 77 | G30: Q3-Med | H30: =QUARTILE(B3:B18,3)-MEDIAN(B3:B18) -> 5.5 | J30: normal | K30: =IF(K28<K29,"no","yes") -> yes | M30: # blank | N30: =COUNTIF(N32:N47,"") -> 0
D31: Standard Deviation | E31: =STDEV(B3:B18) -> 7.200694411 | G31: Max-Q3 | H31: =MAX(B3:B18)-QUARTILE(B3:B18,3) -> 9.5 | M31: # non-num | N31: =COUNTIF(N32:N47," ******* ") -> 0
D32: Sample Variance | E32: =VAR(B3:B18) -> 51.85 | M32: 1 | N32: =IF(B3="","",IF(ISNUMBER(B3),STANDARDIZE(B3,N$27,N$28)," ******* ")) -> 1.996335239 | O32: =IF(COUNTIF(N32,">=2.5")+COUNTIF(N32,"<=-2.5")>0,"*","") -> 
D33: Kurtosis | E33: =KURT(B3:B18) -> -0.4350645639 | M33: =M32+1 -> 2 | N33: =IF(B4="","",IF(ISNUMBER(B4),STANDARDIZE(B4,N$27,N$28)," ******* ")) -> 0.88533128 | O33: =IF(COUNTIF(N33,">=2.5")+COUNTIF(N33,"<=-2.5")>0,"*","") -> 
D34: Skewness | E34: =SKEW(B3:B18) -> 0.1860728838 | M34: =M33+1 -> 3 | N34: 0.05207831059
D35: Range | E35: =E36-E37 -> 26 | M35: 4 | N35: 0.6075802902
D36: Maximum | E36: =MAX(B3:B18) -> 87 | M36: 5 | N36: -0.08679718432
D37: Minimum | E37: =MIN(B3:B18) -> 61 | M37: 6 | N37: -1.475552133
D38: Sum | E38: =SUM(B3:B18) -> 1162 | M38: 7 | N38: -0.2256726792
D39: Count | E39: =COUNT(B3:B18) -> 16 | M39: 8 | N39: 0.6075802902
D40: Geometric Mean | E40: =GEOMEAN(B3:B18) -> 72.29118344 | M40: 9 | N40: 1.024206775
D41: Harmonic Mean | E41: =HARMEAN(B3:B18) -> 71.95855826 | M41: 10 | N41: -0.08679718432
D42: AAD | E42: =AVEDEV(B3:B18) -> 5.703125 | M42: 11 | N42: -0.9200501538
D43: MAD | E43: =[1]!MAD(B3:B18) -> 5.5 | M43: 12 | N43: 1.16308227
D44: IQR | E44: =[1]!IQR(B3:B18,FALSE) -> 10 | M44: 13 | N44: -0.6422991639
M45: 14 | N45: -1.614427628
M46: 15 | N46: -0.9200501538
M47: 16 | N47: -0.3645481741
E51: Descriptive Statistics | H51: Box Plot | K51: Shapiro-Wilk Test | N51: Outliers and Missing Data
F53: =B1 -> speed | I53: =B1 -> speed | L53: =B1 -> speed | O53: =B1 -> speed
E54: Mean | F54: =AVERAGE(B2:B18) -> 72.47058824 | H54: Min | I54: =MIN(B2:B18) -> 61 | K54: W | L54: =[1]!SHAPIRO(B2:B18) -> 0.9767147131 | N54: mean | O54: =AVERAGE(B2:B18) -> 72.47058824
E55: Standard Error | F55: =STDEV(B2:B18)/SQRT(COUNT(B2:B18)) -> 1.69800412 | H55: Q1-Min | I55: =QUARTILE(B2:B18,1)-I54 -> 7 | K55: p-value | L55: =[1]!SWTEST(B2:B18) -> 0.9214252735 | N55: stdev | O55: =STDEV(B2:B18) -> 7.001050341
E56: Median | F56: =MEDIAN(B2:B18) -> 72 | H56: Med-Q1 | I56: =MEDIAN(B2:B18)-QUARTILE(B2:B18,1) -> 4 | K56: alpha | L56: 0.05 | N56: # outliers | O56: =COUNTIF(O59:O75,">=2.5")+COUNTIF(O59:O75,"<=-2.5") -> 0
E57: Mode | F57: =MODE(B2:B18) -> 70 | H57: Q3-Med | I57: =QUARTILE(B2:B18,3)-MEDIAN(B2:B18) -> 5 | K57: normal | L57: =IF(L55<L56,"no","yes") -> yes | N57: # blank | O57: =COUNTIF(O59:O75,"") -> 0
E58: Standard Deviation | F58: =STDEV(B2:B18) -> 7.001050341 | H58: Max-Q3 | I58: =MAX(B2:B18)-QUARTILE(B2:B18,3) -> 10 | N58: # non-num | O58: =COUNTIF(O59:O75," ******* ") -> 0
E59: Sample Variance | F59: =VAR(B2:B18) -> 49.01470588 | N59: 1 | O59: =IF(B2="","",IF(ISNUMBER(B2),STANDARDIZE(B2,O$54,O$55)," ******* ")) -> -0.352888226 | P59: =IF(COUNTIF(O59,">=2.5")+COUNTIF(O59,"<=-2.5")>0,"*","") -> 
E60: Kurtosis | F60: =KURT(B2:B18) -> -0.2815654691 | N60: =N59+1 -> 2 | O60: =IF(B3="","",IF(ISNUMBER(B3),STANDARDIZE(B3,O$54,O$55)," ******* ")) -> 2.075318853 | P60: =IF(COUNTIF(O60,">=2.5")+COUNTIF(O60,"<=-2.5")>0,"*","") -> 
E61: Skewness | F61: =SKEW(B2:B18) -> 0.2594827314 | N61: =N60+1 -> 3 | O61: 0.9326331688
E62: Range | F62: =F63-F64 -> 26 | N62: 4 | O62: 0.07561890558
E63: Maximum | F63: =MAX(B2:B18) -> 87 | N63: 5 | O63: 0.6469617477
E64: Minimum | F64: =MIN(B2:B18) -> 61 | N64: 6 | O64: -0.06721680496
E65: Sum | F65: =SUM(B2:B18) -> 1232 | N65: 7 | O65: -1.49557391
E66: Count | F66: =COUNT(B2:B18) -> 17 | N66: 8 | O66: -0.2100525155
E67: Geometric Mean | F67: =GEOMEAN(B2:B18) -> 72.15435559 | N67: 9 | O67: 0.6469617477
E68: Harmonic Mean | F68: =HARMEAN(B2:B18) -> 71.84032007 | N68: 10 | O68: 1.075468879
E69: AAD | F69: =AVEDEV(B2:B18) -> 5.494809689 | N69: 11 | O69: -0.06721680496
E70: MAD | F70: =[1]!MAD(B2:B18) -> 5 | N70: 12 | O70: -0.9242310682
E71: IQR | F71: =[1]!IQR(B2:B18,FALSE) -> 9 | N71: 13 | O71: 1.21830459
N72: 14 | O72: -0.6385596471
N73: 15 | O73: -1.638409621
N74: 16 | O74: -0.9242310682
N75: 17 | O75: -0.352888226
